[Event "*** Titled Tuesday Blitz"]
[Site "Chess.com"]
[Date "2021.04.27"]
[Round "1"]
[White "blitzking1729"]
[Black "bricolageur"]
[Result "1-0"]
[WhiteElo "2667"]
[BlackElo "2332"]
[TimeControl "180+1"]
[EndTime "10:07:15 PDT"]
[Termination "blitzking1729 won by resignation"]

1. c4 {[%clk 0:03:00.2]} 1... e5 {[%clk 0:03:00]} 2. Nf3 {[%clk 0:03:00.3]} 2...
Nc6 {[%clk 0:02:59.9]} 3. Nc3 {[%clk 0:03:00.1]} 3... f5 {[%clk 0:03:00.4]} 4.
d4 {[%clk 0:02:59.7]} 4... e4 {[%clk 0:03:01]} 5. Ng5 {[%clk 0:02:58.5]} 5...
Bb4 {[%clk 0:03:01.6]} 6. h4 {[%clk 0:02:55.4]} 6... Qf6 {[%clk 0:02:56]} 7. e3
{[%clk 0:02:50.3]} 7... Bxc3+ {[%clk 0:02:52]} 8. bxc3 {[%clk 0:02:50.1]} 8...
d6 {[%clk 0:02:52.6]} 9. g3 {[%clk 0:02:47.9]} 9... Nge7 {[%clk 0:02:35.6]} 10.
Rb1 {[%clk 0:02:47]} 10... b6 {[%clk 0:02:24.6]} 11. Be2 {[%clk 0:02:42.2]}
11... h6 {[%clk 0:02:20.4]} 12. Nh3 {[%clk 0:02:40.3]} 12... g5 {[%clk
0:02:17.7]} 13. Ba3 {[%clk 0:02:24.2]} 13... Na5 {[%clk 0:01:41.3]} 14. c5
{[%clk 0:02:13.2]} 14... dxc5 {[%clk 0:01:38.1]} 15. Bb2 {[%clk 0:02:07.5]}
15... c4 {[%clk 0:01:27.5]} 16. Ba3 {[%clk 0:02:05.3]} 16... Nd5 {[%clk
0:01:07]} 17. Kd2 {[%clk 0:01:51]} 17... g4 {[%clk 0:00:37.7]} 18. Nf4 {[%clk
0:01:47.7]} 18... Nxf4 {[%clk 0:00:37.9]} 19. gxf4 {[%clk 0:01:48.1]} 19... Qc6
{[%clk 0:00:34]} 20. Bb4 {[%clk 0:01:43.6]} 20... Nb7 {[%clk 0:00:34.1]} 21. Kc1
{[%clk 0:01:39.2]} 21... Be6 {[%clk 0:00:31.5]} 22. Rg1 {[%clk 0:01:29.6]} 22...
O-O-O {[%clk 0:00:28.5]} 23. Qc2 {[%clk 0:01:26.8]} 23... Rd7 {[%clk 0:00:20.1]}
24. Ba3 {[%clk 0:01:24.3]} 24... Bd5 {[%clk 0:00:17.4]} 25. Bd1 {[%clk 0:01:23]}
25... b5 {[%clk 0:00:15.5]} 26. Qb2 {[%clk 0:01:19.4]} 26... a6 {[%clk
0:00:15.1]} 27. Bb4 {[%clk 0:01:18.6]} 27... h5 {[%clk 0:00:11.7]} 28. a4 {[%clk
0:01:18.3]} 28... Rh6 {[%clk 0:00:12.4]} 29. axb5 {[%clk 0:01:17.1]} 29... axb5
{[%clk 0:00:13.3]} 30. Ra1 {[%clk 0:01:14.8]} 30... Nd6 {[%clk 0:00:10.2]} 31.
Bc2 {[%clk 0:01:08.7]} 31... Kb8 {[%clk 0:00:09]} 32. Kd2 {[%clk 0:01:08.6]}
32... Qb6 {[%clk 0:00:09.2]} 33. Ke2 {[%clk 0:01:07.7]} 33... Nc8 {[%clk
0:00:09.5]} 34. Bc5 {[%clk 0:01:06.9]} 34... Qb7 {[%clk 0:00:09.5]} 35. Rgb1
{[%clk 0:01:06.4]} 35... Bc6 {[%clk 0:00:09.2]} 36. Qb4 {[%clk 0:00:56]} 36...
Nb6 {[%clk 0:00:09.1]} 37. Kf1 {[%clk 0:00:52.1]} 37... Rh8 {[%clk 0:00:08.3]}
38. Kg2 {[%clk 0:00:46.1]} 38... Nd5 {[%clk 0:00:08.4]} 39. Qa5 {[%clk
0:00:43.6]} 39... g3 {[%clk 0:00:08.8]} 40. Ba4 {[%clk 0:00:37.3]} 40... gxf2
{[%clk 0:00:06.7]} 41. Kxf2 {[%clk 0:00:37.4]} 41... Kc8 {[%clk 0:00:04.8]} 42.
Bxb5 {[%clk 0:00:36.8]} 42... Rf8 {[%clk 0:00:03.3]} 43. Bxc6 {[%clk 0:00:32.2]}
1-0

[Event "*** Titled Tuesday Blitz"]
[Site "Chess.com"]
[Date "2021.04.27"]
[Round "1"]
[White "Durarbayli"]
[Black "KyrgyzFighter"]
[Result "1-0"]
[WhiteElo "2753"]
[BlackElo "2404"]
[TimeControl "180+1"]
[EndTime "10:07:17 PDT"]
[Termination "Durarbayli won by checkmate"]

1. e4 {[%clk 0:02:59.2]} 1... e6 {[%clk 0:03:00]} 2. d4 {[%clk 0:02:58.1]} 2...
d5 {[%clk 0:03:00.4]} 3. e5 {[%clk 0:02:58.4]} 3... c5 {[%clk 0:03:00.2]} 4. c3
{[%clk 0:02:57.9]} 4... Nc6 {[%clk 0:03:00.1]} 5. Nf3 {[%clk 0:02:58.3]} 5...
Bd7 {[%clk 0:02:59.6]} 6. Bd3 {[%clk 0:02:56]} 6... f6 {[%clk 0:02:59.5]} 7. O-O
{[%clk 0:02:54.3]} 7... fxe5 {[%clk 0:02:59.2]} 8. dxe5 {[%clk 0:02:53]} 8...
Qc7 {[%clk 0:02:58.8]} 9. Re1 {[%clk 0:02:50.3]} 9... O-O-O {[%clk 0:02:57.7]}
10. Bg5 {[%clk 0:02:43]} 10... Be7 {[%clk 0:02:55.2]} 11. Nbd2 {[%clk
0:02:32.2]} 11... h6 {[%clk 0:02:51.8]} 12. Bxe7 {[%clk 0:02:28.2]} 12... Ngxe7
{[%clk 0:02:52.7]} 13. c4 {[%clk 0:02:28]} 13... g5 {[%clk 0:02:42.1]} 14. h3
{[%clk 0:02:26.3]} 14... Rdf8 {[%clk 0:02:39.3]} 15. Rc1 {[%clk 0:02:22.4]}
15... d4 {[%clk 0:02:28.1]} 16. a3 {[%clk 0:02:16.9]} 16... Kb8 {[%clk
0:02:20.7]} 17. b4 {[%clk 0:02:13.2]} 17... cxb4 {[%clk 0:02:18.6]} 18. axb4
{[%clk 0:02:14.1]} 18... Nxb4 {[%clk 0:02:18.6]} 19. Ne4 {[%clk 0:02:01.2]}
19... Bc6 {[%clk 0:02:15.7]} 20. Nf6 {[%clk 0:01:50.8]} 20... Bxf3 {[%clk
0:01:46.4]} 21. Qxf3 {[%clk 0:01:51.7]} 21... Nec6 {[%clk 0:01:47]} 22. Rb1
{[%clk 0:01:20.6]} 22... a5 {[%clk 0:01:44.2]} 23. Bg6 {[%clk 0:01:08.3]} 23...
Ka7 {[%clk 0:01:29.7]} 24. Qa3 {[%clk 0:00:59.2]} 24... Rd8 {[%clk 0:01:19.2]}
25. Be4 {[%clk 0:00:52.1]} 25... d3 {[%clk 0:01:06.7]} 26. Bxc6 {[%clk
0:00:47.6]} 26... Nxc6 {[%clk 0:01:07.6]} 27. Ne4 {[%clk 0:00:47.6]} 27... d2
{[%clk 0:00:59.8]} 28. Qe3+ {[%clk 0:00:34.8]} 28... Ka8 {[%clk 0:00:54.3]} 29.
Nxd2 {[%clk 0:00:35.2]} 29... Rd4 {[%clk 0:00:38.3]} 30. Rb5 {[%clk 0:00:19.4]}
30... Rhd8 {[%clk 0:00:36.1]} 31. Nb3 {[%clk 0:00:19.2]} 31... Rxc4 {[%clk
0:00:32.6]} 32. Ra1 {[%clk 0:00:19.3]} 32... a4 {[%clk 0:00:26.3]} 33. Nc5
{[%clk 0:00:19.3]} 33... Qxe5 {[%clk 0:00:20.3]} 34. Qxe5 {[%clk 0:00:13.6]}
34... Nxe5 {[%clk 0:00:21.2]} 35. Nxa4 {[%clk 0:00:10.9]} 35... Re4 {[%clk
0:00:11.5]} 36. Nc5+ {[%clk 0:00:10.3]} 36... Kb8 {[%clk 0:00:11.5]} 37. Rxb7+
{[%clk 0:00:10.6]} 37... Kc8 {[%clk 0:00:12]} 38. Ra8# {[%clk 0:00:11]} 1-0

[Event "*** Titled Tuesday Blitz"]
[Site "Chess.com"]
[Date "2021.04.27"]
[Round "1"]
[White "Nozdrachev_Vladislav"]
[Black "McCarthyStone"]
[Result "1-0"]
[WhiteElo "2708"]
[BlackElo "2366"]
[TimeControl "180+1"]
[EndTime "10:07:17 PDT"]
[Termination "Nozdrachev_Vladislav won on time"]

1. e4 {[%clk 0:03:00.9]} 1... d5 {[%clk 0:02:58.1]} 2. exd5 {[%clk 0:02:59.9]}
2... Qxd5 {[%clk 0:02:59]} 3. Nc3 {[%clk 0:02:59.3]} 3... Qd6 {[%clk 0:02:59.6]}
4. d4 {[%clk 0:02:56.9]} 4... Nf6 {[%clk 0:02:59.7]} 5. Nf3 {[%clk 0:02:55.4]}
5... e6 {[%clk 0:02:59.3]} 6. Nb5 {[%clk 0:02:54.3]} 6... Qd8 {[%clk 0:02:53.3]}
7. Bf4 {[%clk 0:02:52.2]} 7... Na6 {[%clk 0:02:51]} 8. c4 {[%clk 0:02:51.2]}
8... c6 {[%clk 0:02:51]} 9. Nc3 {[%clk 0:02:50.7]} 9... Bd6 {[%clk 0:02:51.6]}
10. Bg3 {[%clk 0:02:48.3]} 10... O-O {[%clk 0:02:49.7]} 11. Be2 {[%clk
0:02:46.9]} 11... Nc7 {[%clk 0:02:46.4]} 12. O-O {[%clk 0:02:36.5]} 12... b6
{[%clk 0:02:42.8]} 13. Ne5 {[%clk 0:02:34.8]} 13... Bb7 {[%clk 0:02:42]} 14. Bf3
{[%clk 0:02:18.6]} 14... Bxe5 {[%clk 0:02:12]} 15. dxe5 {[%clk 0:02:16.2]} 15...
Nd7 {[%clk 0:02:12.1]} 16. Ne4 {[%clk 0:02:13.7]} 16... Ne8 {[%clk 0:02:11.2]}
17. Nd6 {[%clk 0:02:02.2]} 17... Nxd6 {[%clk 0:02:02.1]} 18. exd6 {[%clk
0:02:03.1]} 18... Qc8 {[%clk 0:01:55.1]} 19. Bh4 {[%clk 0:01:43]} 19... c5
{[%clk 0:01:48.2]} 20. Be7 {[%clk 0:01:42.5]} 20... Re8 {[%clk 0:01:48.4]} 21.
Re1 {[%clk 0:01:42.3]} 21... Bc6 {[%clk 0:01:41.3]} 22. Re3 {[%clk 0:01:34.6]}
22... Qb7 {[%clk 0:01:39.1]} 23. Bxc6 {[%clk 0:01:29]} 23... Qxc6 {[%clk
0:01:38.8]} 24. Qh5 {[%clk 0:01:29.9]} 24... Nf8 {[%clk 0:01:30.6]} 25. Rd1
{[%clk 0:01:12.9]} 25... Qd7 {[%clk 0:01:24.2]} 26. Rh3 {[%clk 0:01:09.5]} 26...
h6 {[%clk 0:01:12.2]} 27. Bf6 {[%clk 0:00:28.5]} 27... Ng6 {[%clk 0:00:35.2]}
28. Bxg7 {[%clk 0:00:26.9]} 28... Nf4 {[%clk 0:00:17.7]} 29. Qxh6 {[%clk
0:00:20.7]} 29... Nxh3+ {[%clk 0:00:17.8]} 30. gxh3 {[%clk 0:00:20.3]} 30... f5
{[%clk 0:00:11.4]} 31. Be5 {[%clk 0:00:17.7]} 31... Qh7 {[%clk 0:00:03.2]} 32.
Qg5+ {[%clk 0:00:17.4]} 32... Kf8 {[%clk 0:00:03.6]} 33. Rd3 {[%clk 0:00:13.1]}
33... Qg8 {[%clk 0:00:03.4]} 34. Rg3 {[%clk 0:00:12.2]} 34... Qxg5 {[%clk
0:00:03.2]} 35. Rxg5 {[%clk 0:00:13.1]} 1-0

[Event "*** Titled Tuesday Blitz"]
[Site "Chess.com"]
[Date "2021.04.27"]
[Round "1"]
[White "politeplayer"]
[Black "HonzaVykouk"]
[Result "0-1"]
[WhiteElo "2251"]
[BlackElo "2582"]
[TimeControl "180+1"]
[EndTime "10:07:17 PDT"]
[Termination "HonzaVykouk won on time"]

1. e4 {[%clk 0:02:59.3]} 1... c5 {[%clk 0:02:58.8]} 2. Nf3 {[%clk 0:02:58.6]}
2... Nc6 {[%clk 0:02:55.7]} 3. d4 {[%clk 0:02:54.2]} 3... cxd4 {[%clk
0:02:56.6]} 4. Nxd4 {[%clk 0:02:54.5]} 4... e6 {[%clk 0:02:53.7]} 5. Nc3 {[%clk
0:02:53.3]} 5... Qb6 {[%clk 0:02:50.2]} 6. Nb3 {[%clk 0:02:51]} 6... Nf6 {[%clk
0:02:45.2]} 7. Be3 {[%clk 0:02:50.3]} 7... Qc7 {[%clk 0:02:32.9]} 8. g3 {[%clk
0:02:33.9]} 8... a6 {[%clk 0:02:03.4]} 9. Bg2 {[%clk 0:02:33.1]} 9... d6 {[%clk
0:02:02.4]} 10. O-O {[%clk 0:02:30.1]} 10... b5 {[%clk 0:01:58.3]} 11. Qe2
{[%clk 0:02:22.1]} 11... Bb7 {[%clk 0:01:54.7]} 12. Rad1 {[%clk 0:02:20.1]}
12... Be7 {[%clk 0:01:54.1]} 13. g4 {[%clk 0:02:03.8]} 13... O-O {[%clk
0:01:52.9]} 14. g5 {[%clk 0:02:00.8]} 14... Nd7 {[%clk 0:01:53.2]} 15. Qh5
{[%clk 0:01:50]} 15... Rfe8 {[%clk 0:01:52.6]} 16. f4 {[%clk 0:01:42.6]} 16...
g6 {[%clk 0:01:51.6]} 17. Qg4 {[%clk 0:01:33.5]} 17... b4 {[%clk 0:01:46.4]} 18.
Ne2 {[%clk 0:01:31.5]} 18... a5 {[%clk 0:01:47.1]} 19. f5 {[%clk 0:01:20.4]}
19... Nde5 {[%clk 0:01:46.2]} 20. Qg3 {[%clk 0:01:19.8]} 20... Ba6 {[%clk
0:01:40.3]} 21. Rf2 {[%clk 0:00:56.9]} 21... a4 {[%clk 0:01:31.7]} 22. Nbd4
{[%clk 0:00:51.1]} 22... Bxe2 {[%clk 0:01:25.1]} 23. Nxe2 {[%clk 0:00:31.1]}
23... Nc4 {[%clk 0:01:18.9]} 24. fxe6 {[%clk 0:00:26.3]} 24... fxe6 {[%clk
0:01:18.2]} 25. Bf4 {[%clk 0:00:18.6]} 25... Nxb2 {[%clk 0:00:50.4]} 26. Bxd6
{[%clk 0:00:16.7]} 26... Nxd1 {[%clk 0:00:43.1]} 27. Bxc7 {[%clk 0:00:15.4]}
27... Bc5 {[%clk 0:00:43.7]} 28. Qh3 {[%clk 0:00:09.3]} 28... Nxf2 {[%clk
0:00:41.5]} 29. Qh4 {[%clk 0:00:08]} 29... Nxe4+ {[%clk 0:00:38.8]} 30. Kf1
{[%clk 0:00:07.4]} 30... Rf8+ {[%clk 0:00:37.5]} 31. Nf4 {[%clk 0:00:07.4]}
31... Be3 {[%clk 0:00:23.9]} 32. Bxe4 {[%clk 0:00:05.2]} 32... e5 {[%clk
0:00:20.9]} 33. Bxe5 {[%clk 0:00:03.5]} 33... Nxe5 {[%clk 0:00:20.4]} 34. Bd5+
{[%clk 0:00:03.3]} 34... Kh8 {[%clk 0:00:19.5]} 35. Qh3 {[%clk 0:00:01.9]} 35...
Bxf4 {[%clk 0:00:17.3]} 36. Qe6 {[%clk 0:00:01.3]} 36... Rae8 {[%clk 0:00:16.7]}
0-1

[Event "*** Titled Tuesday Blitz"]
[Site "Chess.com"]
[Date "2021.04.27"]
[Round "1"]
[White "lucachess49"]
[Black "MITerryble"]
[Result "0-1"]
[WhiteElo "2446"]
[BlackElo "2883"]
[TimeControl "180+1"]
[EndTime "10:07:18 PDT"]
[Termination "MITerryble won on time"]

1. d4 {[%clk 0:03:00.9]} 1... d5 {[%clk 0:02:56]} 2. c4 {[%clk 0:03:00.6]} 2...
dxc4 {[%clk 0:02:54.4]} 3. Nf3 {[%clk 0:02:57.4]} 3... Nf6 {[%clk 0:02:36]} 4.
e3 {[%clk 0:02:57.3]} 4... e6 {[%clk 0:02:36.4]} 5. Bxc4 {[%clk 0:02:53.7]} 5...
a6 {[%clk 0:02:35.9]} 6. a4 {[%clk 0:02:52.2]} 6... c5 {[%clk 0:02:35.1]} 7. O-O
{[%clk 0:02:52.3]} 7... Nc6 {[%clk 0:02:34.7]} 8. Nc3 {[%clk 0:02:52.1]} 8...
Be7 {[%clk 0:02:34.7]} 9. Qe2 {[%clk 0:02:52.3]} 9... O-O {[%clk 0:02:34.1]} 10.
Rd1 {[%clk 0:02:51.8]} 10... Qc7 {[%clk 0:02:33.7]} 11. d5 {[%clk 0:02:50.9]}
11... exd5 {[%clk 0:02:32.4]} 12. Nxd5 {[%clk 0:02:51.8]} 12... Nxd5 {[%clk
0:02:32.5]} 13. Bxd5 {[%clk 0:02:52.7]} 13... Nb4 {[%clk 0:02:32.2]} 14. Bc4
{[%clk 0:02:51.9]} 14... Bg4 {[%clk 0:02:19.5]} 15. Bd2 {[%clk 0:02:48.1]} 15...
Bf6 {[%clk 0:02:14.3]} 16. Bxb4 {[%clk 0:02:38]} 16... cxb4 {[%clk 0:02:14.2]}
17. Rac1 {[%clk 0:02:38.3]} 17... Qe7 {[%clk 0:02:01.4]} 18. Bd5 {[%clk
0:02:37.5]} 18... Rac8 {[%clk 0:01:51.2]} 19. h3 {[%clk 0:02:29.9]} 19... Bh5
{[%clk 0:01:49.6]} 20. Qd2 {[%clk 0:02:11.7]} 20... Rfd8 {[%clk 0:01:31.2]} 21.
Rxc8 {[%clk 0:02:09.7]} 21... Rxc8 {[%clk 0:01:32.1]} 22. Rc1 {[%clk 0:02:06.2]}
22... Rd8 {[%clk 0:01:32.1]} 23. Rd1 {[%clk 0:02:00.5]} 23... Bxf3 {[%clk
0:01:05.2]} 24. gxf3 {[%clk 0:02:01.4]} 24... g6 {[%clk 0:01:04.9]} 25. b3
{[%clk 0:01:48.5]} 25... Kg7 {[%clk 0:01:04.3]} 26. Qd3 {[%clk 0:01:46.7]} 26...
Rc8 {[%clk 0:00:57.8]} 27. Bc4 {[%clk 0:01:44.2]} 27... Rd8 {[%clk 0:00:49.3]}
28. Qxd8 {[%clk 0:00:28.1]} 28... Qxd8 {[%clk 0:00:50.2]} 29. Rxd8 {[%clk
0:00:27.7]} 29... Bxd8 {[%clk 0:00:51.1]} 30. Kf1 {[%clk 0:00:25.7]} 30... f6
{[%clk 0:00:49.8]} 31. Ke2 {[%clk 0:00:26.1]} 31... Kh6 {[%clk 0:00:50.1]} 32.
Kd3 {[%clk 0:00:26.7]} 32... Kg5 {[%clk 0:00:50.2]} 33. Ke4 {[%clk 0:00:09.8]}
33... Kh4 {[%clk 0:00:49.9]} 34. Kd5 {[%clk 0:00:07.3]} 34... Kxh3 {[%clk
0:00:48.9]} 35. Ke6 {[%clk 0:00:07.5]} 35... Kg2 {[%clk 0:00:44.5]} 36. Bd5
{[%clk 0:00:07.2]} 36... Kxf2 {[%clk 0:00:41.7]} 37. Bxb7 {[%clk 0:00:05.3]}
37... Kxe3 {[%clk 0:00:40.6]} 38. Bxa6 {[%clk 0:00:04.4]} 38... Kxf3 {[%clk
0:00:38.6]} 39. Bd3 {[%clk 0:00:04.2]} 39... Ke3 {[%clk 0:00:36]} 40. Bc4 {[%clk
0:00:03.2]} 40... f5 {[%clk 0:00:35.9]} 41. Kd7 {[%clk 0:00:02.2]} 41... Bf6
{[%clk 0:00:30.7]} 42. Ke6 {[%clk 0:00:01.4]} 42... Bd4 {[%clk 0:00:30.5]} 43.
Kf7 {[%clk 0:00:02.1]} 43... f4 {[%clk 0:00:28.8]} 0-1

[Event "*** Titled Tuesday Blitz"]
[Site "Chess.com"]
[Date "2021.04.27"]
[Round "1"]
[White "Kozok"]
[Black "DarZay"]
[Result "1-0"]
[WhiteElo "2524"]
[BlackElo "2168"]
[TimeControl "180+1"]
[EndTime "10:07:18 PDT"]
[Termination "Kozok won on time"]

1. e4 {[%clk 0:03:00.9]} 1... e5 {[%clk 0:02:59]} 2. Nf3 {[%clk 0:03:00.1]} 2...
Nc6 {[%clk 0:02:58.6]} 3. Nc3 {[%clk 0:02:58.3]} 3... Bc5 {[%clk 0:02:55.6]} 4.
Nxe5 {[%clk 0:02:58.3]} 4... Bxf2+ {[%clk 0:02:53.7]} 5. Kxf2 {[%clk 0:02:59.2]}
5... Nxe5 {[%clk 0:02:34.5]} 6. d4 {[%clk 0:02:51.2]} 6... Qf6+ {[%clk
0:02:23.7]} 7. Kg1 {[%clk 0:02:29.9]} 7... Ng4 {[%clk 0:02:20.4]} 8. Qd2 {[%clk
0:02:01.3]} 8... d6 {[%clk 0:01:46.2]} 9. h3 {[%clk 0:01:49.4]} 9... N4h6 {[%clk
0:01:45.7]} 10. Bc4 {[%clk 0:01:19.4]} 10... Ne7 {[%clk 0:01:43.7]} 11. Kh2
{[%clk 0:01:03.3]} 11... Qh4 {[%clk 0:01:08]} 12. g3 {[%clk 0:01:03.3]} 12...
Qh5 {[%clk 0:01:06.6]} 13. Kg2 {[%clk 0:00:59.8]} 13... f5 {[%clk 0:00:53.1]}
14. Qe3 {[%clk 0:00:46.8]} 14... Bd7 {[%clk 0:00:27.4]} 15. Bd2 {[%clk
0:00:44.1]} 15... O-O-O {[%clk 0:00:27.3]} 16. Rae1 {[%clk 0:00:43.2]} 16...
Rde8 {[%clk 0:00:25.2]} 17. d5 {[%clk 0:00:43.2]} 17... Ng6 {[%clk 0:00:24]} 18.
Qxa7 {[%clk 0:00:42.8]} 18... Kd8 {[%clk 0:00:21.7]} 19. exf5 {[%clk 0:00:40]}
19... Ne5 {[%clk 0:00:21.2]} 20. Be2 {[%clk 0:00:38.2]} 20... Qxf5 {[%clk
0:00:18.7]} 21. Bxh6 {[%clk 0:00:33.5]} 21... gxh6 {[%clk 0:00:18.3]} 22. g4
{[%clk 0:00:30]} 22... Qg5 {[%clk 0:00:18]} 23. Qb8+ {[%clk 0:00:28.9]} 23...
Bc8 {[%clk 0:00:17.6]} 24. Nb5 {[%clk 0:00:27.8]} 24... Qg7 {[%clk 0:00:17]} 25.
Rhf1 {[%clk 0:00:25.7]} 25... h5 {[%clk 0:00:15.6]} 26. Na7 {[%clk 0:00:25.8]}
26... Qd7 {[%clk 0:00:14.7]} 27. Bb5 {[%clk 0:00:26.3]} 27... c6 {[%clk
0:00:12.9]} 28. dxc6 {[%clk 0:00:26.5]} 28... Nxc6 {[%clk 0:00:11.5]} 29. Nxc6+
{[%clk 0:00:24.4]} 29... bxc6 {[%clk 0:00:11]} 30. Qb6+ {[%clk 0:00:24.2]} 30...
Qc7 {[%clk 0:00:11.3]} 31. Qxc7+ {[%clk 0:00:15.1]} 31... Kxc7 {[%clk
0:00:11.2]} 32. Bd3 {[%clk 0:00:16]} 32... hxg4 {[%clk 0:00:08.5]} 33. Rf7+
{[%clk 0:00:15.4]} 33... Kb6 {[%clk 0:00:06.3]} 34. Rxe8 {[%clk 0:00:15.6]}
34... Rxe8 {[%clk 0:00:05.6]} 35. hxg4 {[%clk 0:00:16.3]} 1-0

[Event "*** Titled Tuesday Blitz"]
[Site "Chess.com"]
[Date "2021.04.27"]
[Round "1"]
[White "LileKoridze"]
[Black "superchess02"]
[Result "0-1"]
[WhiteElo "2422"]
[BlackElo "2804"]
[TimeControl "180+1"]
[EndTime "10:07:24 PDT"]
[Termination "superchess02 won by resignation"]

1. d4 {[%clk 0:03:00.9]} 1... Nf6 {[%clk 0:02:59.6]} 2. c4 {[%clk 0:03:01.4]}
2... e6 {[%clk 0:02:59.9]} 3. Nc3 {[%clk 0:03:01.7]} 3... c5 {[%clk 0:03:00]} 4.
d5 {[%clk 0:03:01.3]} 4... d6 {[%clk 0:03:00.5]} 5. e4 {[%clk 0:03:00.6]} 5...
a6 {[%clk 0:02:58.7]} 6. Nf3 {[%clk 0:02:59.7]} 6... exd5 {[%clk 0:02:58.2]} 7.
exd5 {[%clk 0:02:59]} 7... Be7 {[%clk 0:02:56.7]} 8. Bd3 {[%clk 0:02:59.2]} 8...
O-O {[%clk 0:02:56.7]} 9. O-O {[%clk 0:02:59.9]} 9... Bg4 {[%clk 0:02:55.4]} 10.
h3 {[%clk 0:02:56.7]} 10... Bh5 {[%clk 0:02:55.5]} 11. Be2 {[%clk 0:02:54]}
11... Nbd7 {[%clk 0:02:53.1]} 12. Bf4 {[%clk 0:02:52.8]} 12... Re8 {[%clk
0:02:51.8]} 13. Qc2 {[%clk 0:02:50.5]} 13... b5 {[%clk 0:02:42.9]} 14. cxb5
{[%clk 0:02:50.2]} 14... axb5 {[%clk 0:02:42.7]} 15. Nxb5 {[%clk 0:02:43.7]}
15... Nxd5 {[%clk 0:02:42.5]} 16. Bxd6 {[%clk 0:02:40]} 16... Bxd6 {[%clk
0:02:28.7]} 17. Nxd6 {[%clk 0:02:39.3]} 17... Re6 {[%clk 0:02:28.6]} 18. Nc4
{[%clk 0:02:36.3]} 18... Nf4 {[%clk 0:02:23.8]} 19. Bd1 {[%clk 0:02:16]} 19...
Rg6 {[%clk 0:02:15.1]} 20. Ne3 {[%clk 0:02:04.8]} 20... Nxh3+ {[%clk 0:02:12.4]}
21. Kh2 {[%clk 0:02:04.4]} 21... Bxf3 {[%clk 0:01:51.7]} 22. Bxf3 {[%clk
0:02:03.6]} 22... Ng5 {[%clk 0:01:51.5]} 23. Bg4 {[%clk 0:02:00.8]} 23... Ne5
{[%clk 0:01:27.2]} 24. f4 {[%clk 0:01:47.7]} 24... Qd4 {[%clk 0:01:05.6]} 25.
fxg5 {[%clk 0:01:14.5]} 25... Qxe3 {[%clk 0:00:58.4]} 26. Bh3 {[%clk 0:01:12.3]}
26... Qxg5 {[%clk 0:00:54.1]} 27. Qf2 {[%clk 0:01:03.4]} 27... h5 {[%clk
0:00:51.4]} 28. Kg1 {[%clk 0:00:54]} 28... Raa6 {[%clk 0:00:41.7]} 29. Qf5
{[%clk 0:00:51.1]} 29... Qe3+ {[%clk 0:00:36.9]} 30. Kh1 {[%clk 0:00:45.4]}
30... Ng4 {[%clk 0:00:21.8]} 31. Qxh5 {[%clk 0:00:24.7]} 31... Nf2+ {[%clk
0:00:21.9]} 32. Kh2 {[%clk 0:00:24.5]} 32... Rh6 {[%clk 0:00:22.4]} 33. Qf5
{[%clk 0:00:21.5]} 33... Raf6 {[%clk 0:00:20.7]} 34. Qc8+ {[%clk 0:00:20]} 34...
Kh7 {[%clk 0:00:21]} 35. Rxf2 {[%clk 0:00:16.4]} 35... Qxf2 {[%clk 0:00:20.7]}
36. a4 {[%clk 0:00:15.9]} 36... Rxh3+ {[%clk 0:00:19.2]} 37. Qxh3+ {[%clk
0:00:14.3]} 37... Rh6 {[%clk 0:00:19.4]} 38. Qxh6+ {[%clk 0:00:14.6]} 38... Kxh6
{[%clk 0:00:19.6]} 39. a5 {[%clk 0:00:15.3]} 39... Qh4+ {[%clk 0:00:19.5]} 40.
Kg1 {[%clk 0:00:13.6]} 40... Qd4+ {[%clk 0:00:20.4]} 41. Kh2 {[%clk 0:00:13.3]}
41... Qxb2 {[%clk 0:00:21]} 42. Ra4 {[%clk 0:00:13.2]} 42... Qb5 {[%clk
0:00:21.3]} 43. Ra1 {[%clk 0:00:13.1]} 43... Qa6 {[%clk 0:00:21.5]} 44. Kg3
{[%clk 0:00:13]} 44... c4 {[%clk 0:00:21.7]} 45. Kf3 {[%clk 0:00:13.9]} 45...
Qf6+ {[%clk 0:00:21.6]} 46. Ke3 {[%clk 0:00:14.8]} 46... Qxa1 {[%clk 0:00:22.3]}
0-1